fUSD/lending_fUSD_20251228
["ID","MTS","AMOUNT","RATE_DAILY","PERIOD"]
[399932787,1766886640422,-557.95110967,0.00016983,2]
[399932788,1766886640432,-52080.56,0.00016986,2]
[399932789,1766886640442,-153.94986415,0.00016986,2]
[399932790,1766886640452,-155.62065046,0.00016986,2]
[399932791,1766886640462,-154.53555957,0.00016986,2]
[399932792,1766886640473,-230.53413846,0.00016986,2]
[399932793,1766886640483,-151.43448031,0.00016986,2]
[399932794,1766886640498,-150.54995893,0.00016986,2]
[399932795,1766886640507,-155.09002853,0.00016986,2]
[399932796,1766886640518,-151.13068782,0.00016986,2]
[399932797,1766886640528,-150.39697246,0.00016986,2]
[399932798,1766886640537,-151.89603949,0.00016986,2]
[399932799,1766886640547,-151.9400994,0.00016986,2]
[399932800,1766886640556,-154.87318317,0.00016986,2]
[399932801,1766886640565,-1028.79,0.00016987,2]
[399932802,1766886640575,-192.43582026,0.0001699,2]
[399932803,1766886640585,-151.0,0.00016997,2]
[399932804,1766886640596,-307.32179982,0.00016999,2]
[399932805,1766886640605,-300.0,0.00016999,2]
[399932806,1766886640615,-500.0,0.00016999,2]
[399932807,1766886640625,-500.0,0.00016999,2]
[399932808,1766886640635,-500.0,0.00016999,2]
[399932809,1766886640645,-167.51545673,0.00016999,2]
[399932810,1766886640655,-1058653.67548515,0.00017,2]
[399932812,1766886640670,-4030.00360946,0.00017,2]
[399932814,1766886640681,-28778.29687055,0.00017,2]
[399932815,1766886640696,-11992.42953689,0.00017,2]
[399932816,1766886640707,-937.5,0.00017,2]
[399932817,1766886640719,-405.6688155,0.00017,2]
[399932818,1766886640731,-7713.53597239,0.00017,2]
[399932819,1766886640746,-639.88094719,0.00017,2]
[399932820,1766886640776,-4006.93368948,0.00017,2]
[399932821,1766886640787,-26245.02281253,0.00017,2]
[399932822,1766886640798,-2149.884,0.00017,2]
[399932823,1766886640811,-2140.429727,0.00017,2]
[399932824,1766886640822,-2139.40000018,0.00017,2]
[399932825,1766886640834,-423.82310137,0.00017,2]
[399932826,1766886640847,-634.59901641,0.00017,2]
[399932827,1766886640859,-363.41067793,0.00017,2]
[399932828,1766886640870,-121890.9166002,0.00017,2]
[399932829,1766886640883,-2167.29775329,0.00017,2]
[399932830,1766886640927,-512.65849277,0.00017,2]
[399932831,1766886640938,-1310.00023,0.00017,2]
[399932832,1766886640950,-4688.5052475,0.00017,2]
[399932833,1766886640962,-400.88155885,0.00017,2]
[399932834,1766886640974,-499.7797447,0.00017,2]
[399932835,1766886640987,-1318.605,0.00017,2]
[399932836,1766886640998,-922.52095726,0.00017,2]
[399932837,1766886641009,-1844945.37470549,0.00017,2]
[399932838,1766886641019,-1262283.36869971,0.00017,2]
[399932839,1766886641028,-250.0,0.00017,2]
[399932840,1766886641038,-208810.7151186,0.00017,2]
[399932841,1766886641048,-151.0,0.00017,2]
[399932842,1766886641057,-151.0,0.00017,2]
[399932843,1766886641067,-151.0,0.00017,2]
[399932844,1766886641076,-151.0,0.00017,2]
[399932845,1766886641086,-151.0,0.00017,2]
[399932846,1766886641095,-151.0,0.00017,2]
[399932847,1766886641105,-151.0,0.00017,2]
[399932848,1766886641114,-1636.54153318,0.00017023,2]
[399932849,1766886641124,-250.0,0.00017083,2]
[399932850,1766886641134,-380.06257249,0.00017174,2]
[399932851,1766886641143,-208.86276468,0.0001726,2]
[399932852,1766886641153,-1028.79,0.00017261,2]
[399932853,1766886641164,-227.0,0.0001741,2]
[399932854,1766886641173,-924.20807152,0.00017521,2]
[399932855,1766886641183,-578.09055034,0.00017521,2]
[399932856,1766886641194,-500.69794678,0.00017521,2]
[399932857,1766886641203,-1002.64033527,0.00017521,2]
[399932858,1766886641213,-340.61062855,0.00017521,2]
[399932859,1766886641223,-1000.0,0.00017521,2]
[399932860,1766886641232,-502.87827131,0.00017521,2]
[399932861,1766886641242,-1000.0,0.00017521,2]
[399932862,1766886641251,-1000.0,0.00017521,2]
[399932863,1766886641261,-503.81545293,0.00017521,2]
[399932864,1766886641272,-1000.0,0.00017521,2]
[399932865,1766886641282,-638.26902364,0.00017521,2]
[399932866,1766886641292,-194.63016162,0.00017521,2]
[399932867,1766886641302,-1000.0,0.00017521,2]
[399932868,1766886641312,-1028.86322688,0.00017535,2]
[399932869,1766886641322,-166.66,0.00017658,2]
[399932870,1766886641332,-1500.0,0.00018068,2]
[399932871,1766886641341,-1002.76201808,0.00018068,2]
[399932872,1766886641351,-1500.0,0.00018068,2]
[399932873,1766886641361,-1500.0,0.00018068,2]
[399932874,1766886641371,-1007.71318398,0.00018068,2]
[399932875,1766886641381,-1000.0,0.00018082,2]
[399932876,1766886641393,-166.66,0.00018241,2]
[399932877,1766886641403,-194.49141711,0.00018509,2]
[399932878,1766886641413,-1832.8,0.00018579,2]
[399932879,1766886641422,-943.51805555,0.00018616,2]
[399932880,1766886641432,-1003.73099585,0.00018616,2]
[399932881,1766886641442,-1003.95753135,0.00018616,2]
[399932882,1766886641452,-309.12,0.00018675,2]
[399932883,1766886641462,-1000.0,0.0001876,2]
[399932884,1766886641473,-166.66,0.00018824,2]
[399932885,1766886641484,-300.0,0.00018999,2]
[399932886,1766886641494,-2372.79854907,0.00019,2]
[399932887,1766886641504,-143972.8973496,0.00019,2]
[399932888,1766886641514,-300.0,0.00019,2]
[399932889,1766886641524,-710.66184009,0.00019,2]
[399932890,1766886641534,-500.93361917,0.00019075,2]
[399932891,1766886641544,-317.37684229,0.00019082,2]
[399932892,1766886641553,-152.5818195,0.00019157,2]
[399932893,1766886641562,-150.09406056,0.00019178,2]
[399932894,1766886641572,-211.79,0.00019208,2]
[399932895,1766886641582,-46591.9683051,0.00019253,2]
[399932896,1766886641592,-166.66,0.00019407,2]
[399932897,1766886641602,-1000.0,0.00019438,2]
[399932898,1766886641613,-2955.15,0.00019518,2]
[399932899,1766886641623,-176.9,0.00019737,2]
[399932900,1766886641634,-10396.0733495,0.00019755,2]
[399932901,1766886641644,-166.66,0.0001999,2]
[399932902,1766886641653,-500.0,0.00019999,2]
[399932903,1766886641663,-464.99524134,0.00019999,2]
[399932904,1766886641673,-265.14599759,0.00019999,2]
[399932905,1766886641682,-500.0,0.00019999,2]
[399932906,1766886641692,-500.0,0.00019999,2]
[399932907,1766886641701,-524.21352762,0.00019999,2]
[399932908,1766886641711,-500.0,0.00019999,2]
[399932909,1766886641721,-500.0,0.00019999,2]
[399932910,1766886641733,-500.0,0.00019999,2]
[399932911,1766886641743,-500.0,0.00019999,2]
[399932912,1766886641752,-353.64592025,0.00019999,2]
[399932913,1766886641762,-525.32513715,0.00019999,2]
[399932914,1766886641772,-500.0,0.00019999,2]
[399932915,1766886641781,-500.0,0.00019999,2]
[399932916,1766886641791,-305.55612959,0.00019999,2]
[399932917,1766886641800,-500.0,0.00019999,2]
[399932918,1766886641811,-521.06078155,0.00019999,2]
[399932919,1766886641820,-500.0,0.00019999,2]
[399932920,1766886641830,-500.0,0.00019999,2]
[399932921,1766886641840,-500.0,0.00019999,2]
[399932922,1766886641850,-500.0,0.00019999,2]
[399932923,1766886641860,-500.0,0.00019999,2]
[399932924,1766886641870,-200.0,0.0002,2]
[399932925,1766886641881,-155.29267278,0.00020021,2]
[399932926,1766886641892,-1257.0,0.00020021,2]
[399932927,1766886641902,-152.0,0.00020021,2]
[399932928,1766886641912,-1257.0,0.00020021,2]
[399932929,1766886641922,-152.0,0.00020021,2]
[399932930,1766886641932,-152.0,0.00020021,2]
[399932931,1766886641942,-1257.0,0.00020021,2]
[399932932,1766886641951,-1257.0,0.00020021,2]
[399932933,1766886641962,-152.0,0.00020021,2]
[399932934,1766886641971,-282.28633932,0.00020021,2]
[399932935,1766886641981,-153.0,0.00020021,2]
[399932936,1766886641991,-152.0,0.00020021,2]
[399932937,1766886642001,-154.0,0.00020021,2]
[399932938,1766886642010,-153.0,0.00020021,2]
[399932939,1766886642020,-152.0,0.00020021,2]
[399932940,1766886642031,-153.84928669,0.00020021,2]
[399932941,1766886642041,-153.0,0.00020021,2]
[399932942,1766886642051,-152.0,0.00020021,2]
[399932943,1766886642061,-153.0,0.00020021,2]
[399932944,1766886642072,-152.0,0.00020021,2]
[399932945,1766886642082,-153.0,0.00020021,2]
[399932946,1766886642092,-152.0,0.00020021,2]
[399932947,1766886642102,-153.0,0.00020021,2]
[399932948,1766886642112,-294.63189932,0.00020021,2]
[399932949,1766886642122,-153.0,0.00020021,2]
[399932950,1766886642131,-153.0,0.00020021,2]
[399932951,1766886642142,-153.0,0.00020021,2]
[399932952,1766886642152,-153.0,0.00020021,2]
[399932953,1766886642162,-276.38261487,0.00020021,2]
[399932954,1766886642172,-1000.0,0.00020116,2]
[399932955,1766886642182,-321.12,0.00020187,2]
[399932956,1766886642193,-1832.8,0.00020435,2]
[399932957,1766886642205,-166.66,0.00020508,2]
[399932958,1766886642215,-166.66,0.00020573,2]
[399932959,1766886642225,-309.12,0.0002075,2]
[399932960,1766886642235,-1000.0,0.00020795,2]
[399932961,1766886642246,-166.66,0.0002094,2]
[399932962,1766886642256,-299.99,0.00020951,7]
[399932963,1766886642266,-150.99,0.00020951,2]
[399932964,1766886642276,-9999.99,0.00020951,2]
[399932965,1766886642286,-166.66,0.00021372,2]
[399932966,1766886642295,-500.0,0.00021425,2]
[399932967,1766886642305,-295.13,0.00021432,2]
[399932968,1766886642315,-150.0,0.00021472,2]
[399932969,1766886642325,-297.44,0.00021557,2]
[399932970,1766886642334,-166.66,0.00021804,2]
[399932971,1766886642345,-166.66,0.00022235,30]
[399932972,1766886642355,-1832.8,0.00022292,2]
[399932973,1766886642365,-182.52,0.000223,7]
[399932974,1766886642375,-211.79,0.00022335,2]
[399932975,1766886642385,-194.49141711,0.00022587,2]
[399932976,1766886642396,-166.66,0.00022667,30]
[399932977,1766886642405,-309.12,0.00022825,2]
[399932978,1766886642415,-157.5,0.00023032,2]
[399932979,1766886642425,-500.0,0.00023075,2]
[399932980,1766886642434,-500.0,0.00023075,2]
[399932981,1766886642444,-500.0,0.00023075,2]
[399932982,1766886642454,-274.3969955,0.00023075,2]
[399932983,1766886642464,-1000.0,0.00023075,2]
[399932984,1766886642474,-500.0,0.00023075,2]
[399932985,1766886642484,-1000.0,0.00023075,2]
[399932986,1766886642494,-500.0,0.00023075,2]
[399932987,1766886642504,-1000.0,0.00023075,2]
[399932988,1766886642513,-500.0,0.00023075,2]
[399932989,1766886642523,-1000.0,0.00023075,2]
[399932990,1766886642532,-500.0,0.00023075,2]
[399932991,1766886642542,-1000.0,0.00023075,2]
[399932992,1766886642551,-500.0,0.00023075,2]
[399932993,1766886642560,-1000.0,0.00023075,2]
[399932994,1766886642570,-500.0,0.00023075,2]
[399932995,1766886642580,-847.17668647,0.00023075,2]
[399932996,1766886642590,-500.0,0.00023075,2]
[399932997,1766886642600,-500.0,0.00023075,2]
[399932998,1766886642610,-500.0,0.00023075,2]
[399932999,1766886642620,-176.9,0.00023226,2]
[399933000,1766886642630,-616.88,0.00023367,2]
[399933001,1766886642640,-566.253,0.00023367,2]
[399933002,1766886642650,-4765.762,0.00023367,2]
[399933003,1766886642660,-1832.8,0.00024148,2]
[399933004,1766886642670,-8569.0,0.00024233,2]
[399933005,1766886642679,-1000.0,0.00024658,2]
[399933006,1766886642689,-461.0,0.00024818,2]
[399933007,1766886642899,-461.0,0.00025154,2]
[399933008,1766886642909,-461.0,0.00025199,2]
[399933009,1766886642919,-461.0,0.00025255,2]
[399933010,1766886642928,-461.0,0.00025374,2]
[399933011,1766886642938,-461.0,0.00025463,2]
[399933012,1766886642948,-461.0,0.00025578,2]
[399933013,1766886642957,-463.0,0.0002563,7]
[399933014,1766886642966,-182.52,0.000257,7]
[399933015,1766886642976,-461.0,0.00025738,2]
[399933016,1766886642985,-461.0,0.00025885,2]
[399933017,1766886642995,-157.5,0.00025911,2]
[399933018,1766886643005,-461.0,0.00025931,2]
[399933019,1766886643015,-461.0,0.00025963,2]
[399933020,1766886643024,-500.0,0.00025973,2]
[399933021,1766886643034,-1832.8,0.00026005,2]
[399933022,1766886643043,-461.0,0.00026142,2]
[399933023,1766886643053,-282.39,0.00026278,2]
[399933024,1766886643063,-461.0,0.00026312,2]
[399933025,1766886643072,-461.0,0.00026321,2]
[399933026,1766886643082,-461.0,0.00026346,2]
[399933027,1766886643091,-220.67,0.00026377,30]
[399933028,1766886643101,-463.0,0.00026379,2]
[399933029,1766886643111,-461.0,0.0002643,2]
[399933030,1766886643121,-194.49141711,0.00026666,2]
[399933031,1766886643131,-463.0,0.00026668,2]
[399933032,1766886643140,-321.12,0.00026676,2]
[399933033,1766886643149,-461.0,0.00026763,2]
[399933034,1766886643159,-463.0,0.00026951,2]
[399933035,1766886643169,-461.0,0.00027031,2]
[399933036,1766886643179,-461.0,0.00027093,2]
[399933037,1766886643188,-461.0,0.00027115,2]
[399933038,1766886643198,-461.0,0.00027173,7]
[399933039,1766886643208,-182.52,0.000272,7]
[399933040,1766886643218,-161.49470213,0.00027369,2]
[399933041,1766886643228,-500.0,0.00027397,20]
[399933042,1766886643237,-247.5,0.00027397,2]
[399933043,1766886643247,-3985.87,0.00027671,2]
[399933044,1766886643258,-200.0,0.00027776,2]
[399933045,1766886643267,-1832.8,0.00027861,2]
[399933046,1766886643277,-2874.53599028,0.000279,2]
[399933047,1766886643287,-1403.51807199,0.000279,2]
[399933048,1766886643296,-164.7,0.00028629,2]
[399933049,1766886643306,-196.76,0.00028722,2]
[399933050,1766886643315,-157.5,0.0002879,2]
[399933051,1766886643326,-1000.0,0.0002911,2]
[399933052,1766886643335,-235.87,0.00029145,2]
[399933053,1766886643344,-1013.08288605,0.000296,2]
[399933054,1766886643354,-1832.8,0.00029718,2]
[399933055,1766886643364,-151.0,0.00029997,7]
[399933056,1766886643374,-180484.11404331,0.0003,3]
[399933057,1766886643419,-315.32000001,0.0003,3]
[399933058,1766886643430,-4663.45325746,0.0003,3]
[399933059,1766886643442,-1649.6059058,0.0003,3]
[399933060,1766886643454,-477.80224249,0.0003,3]
[399933061,1766886643466,-1048.98557988,0.0003,3]
[399933092,1766886645254,-151.0,0.00015984,2]
[399933093,1766886645265,-151.0,0.00015984,2]
[399933094,1766886645275,-1144.99999999,0.0003,3]
[399933095,1766886646302,-10732.67492904,0.0003,3]
[399933096,1766886646461,-920.465,0.0003,3]
[399933097,1766886646474,-695.555,0.0003,3]
[399933098,1766886646486,-769.79160068,0.0003,3]
[399933099,1766886646498,-306.94332034,0.0003,3]
[399933100,1766886646568,-3286.62288674,0.0003,3]
[399933101,1766886646580,-2907.7227,0.0003,3]
[399933212,1766886663788,200.0,0.00026909,120]
[399933213,1766886663868,200.0,0.00027231,120]
[399933214,1766886663973,200.0,0.0002892,120]
[399933215,1766886664068,200.0,0.0002892,120]
[399933216,1766886664184,192.21809341,0.0002892,120]
[399933217,1766886667017,193.54016903,0.00026909,120]
[399933224,1766886896396,1000.0,0.000299,120]
[399933228,1766887046190,1000.0,0.000298,120]
[399933243,1766887195557,1000.0,0.000298,120]
[399933244,1766887344797,151.1173,0.000298,120]
[399933246,1766887359498,276.0,0.0003,120]
[399933252,1766887425572,200.0,0.0003,120]
[399933384,1766887831301,-151.0,0.00016836,2]
[399933385,1766887831312,-151.0,0.00016836,2]
[399933386,1766887831322,-151.0,0.00016898,2]
[399933387,1766887831335,-151.0,0.00016898,2]
[399933388,1766887831345,-151.0,0.000169,2]
[399933389,1766887831358,-151.0,0.000169,2]
[399933390,1766887831368,-151.0,0.000169,2]
[399933391,1766887831386,-151.0,0.000169,2]
[399933392,1766887831408,-203.15298137,0.00016973,2]
[399933393,1766887831418,-500.0,0.00016973,2]
[399933394,1766887831428,-250.0,0.00017,2]
[399933395,1766887831438,-174.0,0.0001752,2]
[399933396,1766887831448,-1200.0,0.0001843,2]
[399933397,1766887831459,-302.36238607,0.00018431,2]
[399933398,1766887831468,-300.0,0.00018532,2]
[399933401,1766887831755,-1680.1,0.00018533,2]
[399933402,1766887831766,-1410.13714142,0.00018533,2]
[399933403,1766887831785,-1006.48193491,0.00018533,2]
[399933404,1766887831795,-928.47,0.0001867,2]
[399933405,1766887831804,-1099.0,0.00019105,2]
[399933406,1766887831814,-1013.08288605,0.000195,2]
[399933407,1766887831823,-1099.0,0.00020111,2]
[399933408,1766887831834,-1331.0,0.00020198,2]
[399933409,1766887831844,-420.0,0.0002021,2]
[399933410,1766887831854,-174.17680402,0.00020394,2]
[399933411,1766887831866,-744.02657192,0.00020394,2]
[399933412,1766887831908,-761.89662406,0.00020394,2]
[399933413,1766887831918,-304.35947102,0.00021169,2]
[399933414,1766887831930,-391.2107439,0.00021169,2]
[399933415,1766887831942,-403.42978508,0.00021169,2]
[399933416,1766887831953,-250.0,0.00022173,2]
[399933417,1766887831963,-1251.71344853,0.00022254,2]
[399933418,1766887831975,-428.38655147,0.00022254,2]
[399933419,1766887831985,-907.42239885,0.00022283,2]
[399933420,1766887831997,-191.57760115,0.00022283,2]
[399933421,1766887832008,-151.0,0.00022549,2]
[399933422,1766887832018,-151.0,0.00022549,2]
[399933424,1766887832028,-151.0,0.00022549,2]
[399933426,1766887832038,-151.0,0.00022549,2]
[399933428,1766887832048,-151.0,0.00022549,2]
[399933430,1766887832058,-151.0,0.00022549,2]
[399933432,1766887832068,-151.0,0.00022549,2]
[399933434,1766887832078,-203.27151826,0.00022549,2]
[399933436,1766887832088,-150.99,0.00022562,2]
[399933438,1766887832097,-971.77567813,0.00022562,2]
[399933439,1766887832110,-1250.37870014,0.00022562,2]
[399933440,1766887832121,-692.11562173,0.00022562,2]
[399933441,1766887832136,-299.99,0.00022562,7]
[399933442,1766887832146,-1099.0,0.00023456,2]
[399933443,1766887832155,-166.66,0.00023937,30]
[399933444,1766887832165,-1680.1,0.00024115,2]
[399933445,1766887832175,-166.66,0.00024441,30]
[399933446,1766887832185,-516.65147982,0.00024639,2]
[399933447,1766887832205,-49.60152018,0.00024639,2]
[399933448,1766887832215,-1450.13607361,0.00024639,2]
[399933449,1766887832227,-3315.62592639,0.00024639,2]
[399933450,1766887832236,-1099.0,0.00024691,2]
[399933451,1766887832246,-223.16,0.0002475,30]
[399933452,1766887832256,-150.0,0.00024937,2]
[399933453,1766887832266,-166.66,0.00024945,30]
[399933454,1766887832277,-1000.0,0.00024972,2]
[399933455,1766887832287,-500.0,0.00025088,2]
[399933456,1766887832297,-1000.0,0.00025088,2]
[399933457,1766887832307,-500.0,0.00025088,2]
[399933458,1766887832317,-1000.0,0.00025088,2]
[399933459,1766887832327,-500.0,0.00025088,2]
[399933460,1766887832338,-862.76865192,0.00025088,2]
[399933461,1766887832350,-137.23134808,0.00025088,2]
[399933462,1766887832359,-382.99172045,0.00025088,2]
[399933463,1766887832372,-617.00827955,0.00025088,2]
[399933464,1766887832387,-500.0,0.00025088,2]
[399933465,1766887832396,-1000.0,0.00025088,2]
[399933466,1766887832407,-24.2650199,0.00025088,2]
[399933467,1766887832419,-475.7349801,0.00025088,2]
[399933468,1766887832429,-274.3969955,0.00025088,2]
[399933469,1766887832439,-1000.0,0.00025088,2]
[399933470,1766887832450,-500.0,0.00025088,2]
[399933471,1766887832460,-847.17668647,0.00025088,2]
[399933472,1766887832470,-500.0,0.00025088,2]
[399933473,1766887832479,-500.0,0.00025088,2]
[399933474,1766887832489,-500.0,0.00025088,2]
[399933475,1766887832499,-500.0,0.00025088,2]
[399933476,1766887832514,-500.0,0.00025088,2]
[399933477,1766887832524,-500.0,0.00025088,2]
[399933478,1766887832534,-166.66,0.00025449,30]
[399933479,1766887832544,-847.0,0.00025465,2]
[399933480,1766887832554,-794.096,0.00025514,10]
[399933481,1766887832564,-682.78,0.00025514,10]
[399933482,1766887832574,-168.0,0.00025514,2]
[399933483,1766887832585,-168.0,0.00025558,2]
[399933484,1766887832595,-168.0,0.00025697,2]
[399933485,1766887832605,-847.0,0.00025913,2]
[399933486,1766887832616,-166.66,0.00025953,30]
[399933487,1766887832625,-1680.1,0.00025976,2]
[399933488,1766887832635,-1099.0,0.0002599,2]
[399933489,1766887832645,-168.0,0.0002609,2]
[399933490,1766887832655,-168.0,0.00026093,2]
[399933491,1766887832664,-168.0,0.00026201,2]
[399933492,1766887832675,-847.0,0.00026339,2]
[399933493,1766887832685,-847.0,0.00026399,2]
[399933494,1766887832696,-847.0,0.00026447,2]
[399933495,1766887832706,-166.66,0.00026457,30]
[399933496,1766887832716,-168.0,0.00026565,2]
[399933497,1766887832727,-168.0,0.00026571,2]
[399933498,1766887832738,-168.0,0.00026762,2]
[399933499,1766887832748,-168.0,0.00026831,2]
[399933500,1766887832757,-142.16960019,0.00026939,2]
[399933502,1766887837439,-151.0,0.00016898,2]
[399933503,1766887837449,-151.0,0.00016898,2]
[399933504,1766887837458,-567.88367772,0.00026939,2]
[399933505,1766887837470,-136.94672209,0.00026939,2]
[399933506,1766887837480,-168.0,0.00027012,2]
[399933507,1766887837490,-847.0,0.00027086,7]
[399933508,1766887837499,-356.73327791,0.00027212,2]
[399933509,1766887837511,-494.26672209,0.00027212,2]
[399933510,1766887837520,-168.0,0.00027221,2]
[399933511,1766887837529,-784.35967172,0.0002729,2]
[399933512,1766887837541,-314.64032828,0.0002729,2]
[399933513,1766887837551,-168.0,0.00027494,2]
[399933514,1766887837560,-168.0,0.00027562,2]
[399933515,1766887837569,-564.0,0.00027639,2]
[399933516,1766887837579,-851.0,0.00027685,7]
[399933517,1766887837589,-847.0,0.00027697,2]
[399933518,1766887837599,-847.0,0.00027818,2]
[399933519,1766887837608,-1680.1,0.00027836,2]
[399933520,1766887837618,-349.02305704,0.00028094,2]
[399933521,1766887837630,-650.97694296,0.00028094,2]
[399933522,1766887837639,-357.96148991,0.00028654,5]
[399933523,1766887837651,-741.03851009,0.00028654,5]
[399933524,1766887837661,-223.16,0.00029076,30]
[399933526,1766887837671,-233.0,0.00029509,2]
[399933527,1766887837681,-91.292519,0.00029557,2]
[399933528,1766887837696,-500.0,0.00029557,2]
[399933529,1766887837708,-4224.61971556,0.00029557,2]
[399933708,1766887839548,-184.08776544,0.00029557,2]
[399933710,1766887839558,-1542.96228443,0.00029697,2]
[399933758,1766887845393,-151.0,0.00029718,2]
[399933759,1766887845402,-151.0,0.00029718,2]
[399933760,1766887845413,-2589.7089243,0.0002976,2]
[399933761,1766887845423,-903.7208524,0.0002976,2]
[399933762,1766887845432,-1384.5412,0.000298,2]
[399933763,1766887845446,-748.91960041,0.0002989,2]
[399933764,1766887845457,-426.04450591,0.0002989,2]
[399933765,1766887845467,-573.95549409,0.0002989,3]
[399933766,1766887845613,-756.3,0.0002989,3]
[399933767,1766887845671,-1141.6,0.0002989,3]
[399933768,1766887845684,-2787.23387131,0.0002989,3]
[399933947,1766888488548,223.05,0.00011729,2]
[399933949,1766888490572,241.04,0.00026501,120]
[399933950,1766888490895,241.04,0.00029445,120]
[399933976,1766888732107,163.35401625,0.0002,120]
[399934017,1766889031739,-305.3,0.00013699,2]
[399934018,1766889031750,-151.0,0.00016678,2]
[399934019,1766889031761,-151.0,0.00016678,2]
[399934020,1766889031772,-151.0,0.00016682,2]
[399934021,1766889031785,-151.0,0.00016682,2]
[399934022,1766889031796,-262.90385506,0.00016902,2]
[399934023,1766889031806,-500.0,0.00016973,2]
[399934024,1766889031816,-500.0,0.00016973,2]
[399934025,1766889031826,-150.0,0.00016973,2]
[399934026,1766889031837,-192.43582026,0.0001699,2]
[399934027,1766889031847,-300.0,0.00016998,2]
[399934028,1766889031857,-500.0,0.00016999,2]
[399934029,1766889031868,-500.0,0.00016999,2]
[399934030,1766889031879,-204.22192971,0.00016999,2]
[399934031,1766889031888,-161.60007972,0.00016999,2]
[399934032,1766889031899,-615.14599759,0.00016999,2]
[399934033,1766889031909,-399.57589198,0.00016999,2]
[399934034,1766889031925,-100.42410802,0.00016999,2]
[399934035,1766889031936,-500.0,0.00016999,2]
[399934036,1766889031946,-112.57765401,0.00016999,2]
[399934047,1766889037672,-411.63587361,0.00016999,2]
[399934048,1766889037682,-500.0,0.00016999,2]
[399934049,1766889037692,-525.32513715,0.00016999,2]
[399934050,1766889037702,-353.64592025,0.00016999,2]
[399934051,1766889037712,-500.0,0.00016999,2]
[399934052,1766889037721,-500.0,0.00016999,2]
[399934053,1766889037731,-305.55612959,0.00016999,2]
[399934054,1766889037741,-500.0,0.00016999,2]
[399934055,1766889037751,-220.6369394,0.00016999,2]
[399934056,1766889037780,-279.3630606,0.00016999,2]
[399934057,1766889037790,-500.0,0.00016999,2]
[399934058,1766889037803,-500.0,0.00016999,2]
[399934059,1766889037812,-296.61182554,0.00016999,2]
[399934060,1766889037835,-203.38817446,0.00016999,2]
[399934062,1766889037845,-500.0,0.00016999,2]
[399934065,1766889037860,-521.06078155,0.00016999,2]
[399934067,1766889037874,-500.0,0.00016999,2]
[399934069,1766889037884,-500.0,0.00016999,2]
[399934071,1766889037895,-19693.63441614,0.00017,2]
[399934246,1766889039787,-151.0,0.00016806,2]
[399934247,1766889039798,-287.87006152,0.00017,2]
[399934248,1766889039810,-310.53159994,0.00017,2]
[399934249,1766889039826,-500.0,0.00017,2]
[399934250,1766889039844,-151.0,0.00016806,2]
[399934251,1766889039854,-437.0,0.00017,2]
[399934306,1766889043288,-1049.20648709,0.00016913,2]
[399934307,1766889043302,-435.93055891,0.00016913,2]
[399934308,1766889043313,-164.33923119,0.00017,2]
[399934309,1766889044134,-1233.35525829,0.00017,2]
[399934310,1766889044188,-628.3168439,0.00017,2]
[399934311,1766889044203,-1194.489,0.00017,2]
[399934312,1766889044218,-343.40165998,0.00017,2]
[399934314,1766889044252,-500.0,0.00017,2]
[399934358,1766889045802,-272.67480176,0.00017,2]